fUSD/lending_fUSD_20241227
["ID","MTS","AMOUNT","RATE_DAILY","PERIOD"]
[346806548,1735300264562,-500.0,0.00011158,2]
[346806549,1735300264572,-500.0,0.00011158,2]
[346806550,1735300264582,-2906.05,0.00011158,2]
[346806551,1735300264591,-626.44,0.00011158,2]
[346806552,1735300264602,-1086.17,0.00011158,2]
[346806553,1735300264611,-500.0,0.00011158,2]
[346806554,1735300264621,-1286.88,0.00011158,2]
[346806555,1735300264631,-500.0,0.00011158,2]
[346806556,1735300264641,-510.12476394,0.00011158,2]
[346806557,1735300264650,-500.0,0.00011158,2]
[346806558,1735300264659,-500.0,0.00011158,2]
[346806559,1735300264669,-500.0,0.00011158,2]
[346806560,1735300264679,-1147.86,0.00011158,2]
[346806561,1735300264688,-2532.37,0.00011158,2]
[346806562,1735300264698,-1077.8,0.00011158,2]
[346806563,1735300264708,-825.43,0.00011158,2]
[346806564,1735300264718,-4695.97,0.00011158,2]
[346806565,1735300264728,-2071.84,0.00011158,2]
[346806566,1735300264737,-3449.6,0.00011158,2]
[346806567,1735300264746,-1290.38,0.00011158,2]
[346806568,1735300264756,-504.23601594,0.00011158,2]
[346806569,1735300264766,-500.0,0.00011158,2]
[346806570,1735300264776,-2464.72,0.00011158,2]
[346806571,1735300264786,-502.9930041,0.00011159,2]
[346806572,1735300264796,-500.0,0.00011159,2]
[346806573,1735300264807,-500.0,0.00011159,2]
[346806574,1735300264816,-500.0,0.00011159,2]
[346806575,1735300264826,-500.0,0.00011159,2]
[346806576,1735300264835,-500.0,0.00011159,2]
[346806577,1735300264845,-500.0,0.00011159,2]
[346806578,1735300264854,-600.97,0.00011159,2]
[346806579,1735300264864,-500.0,0.00011159,2]
[346806580,1735300264874,-500.0,0.00011159,2]
[346806581,1735300264884,-822.16,0.00011159,2]
[346806582,1735300264893,-500.0,0.00011159,2]
[346806583,1735300264903,-1057.64,0.00011159,2]
[346806584,1735300264912,-500.0,0.00011159,2]
[346806585,1735300264922,-500.0,0.00011159,2]
[346806586,1735300264931,-500.0,0.00011159,2]
[346806587,1735300264940,-1660.6,0.00011159,2]
[346806588,1735300264950,-500.0,0.00011159,2]
[346806589,1735300264960,-500.0,0.00011159,2]
[346806590,1735300264969,-500.0,0.00011159,2]
[346806591,1735300264979,-500.0,0.00011159,2]
[346806592,1735300264989,-705.8,0.00011159,2]
[346806593,1735300264998,-500.0,0.00011159,2]
[346806594,1735300265008,-500.0,0.00011159,2]
[346806595,1735300265018,-500.0,0.00011159,2]
[346806596,1735300265028,-500.0,0.00011159,2]
[346806597,1735300265039,-1223.07,0.00011159,2]
[346806598,1735300265048,-500.0,0.00011159,2]
[346806599,1735300265059,-500.0,0.00011159,2]
[346806600,1735300265069,-500.0,0.00011159,2]
[346806601,1735300265079,-2976.92,0.00011159,2]
[346806602,1735300265088,-500.0,0.00011159,2]
[346806603,1735300265097,-242.69122196,0.00011159,2]
[346806604,1735300265107,-3348.604171,0.00011159,2]
[346806605,1735300265116,-500.0,0.00011159,2]
[346806606,1735300265126,-3292.786804,0.00011159,2]
[346806607,1735300265135,-500.0,0.00011159,2]
[346806608,1735300265145,-1776.48,0.00011159,2]
[346806609,1735300265154,-1919.6,0.00011159,2]
[346806610,1735300265164,-500.0,0.00011159,2]
[346806611,1735300265174,-500.0,0.00011159,2]
[346806612,1735300265184,-502.73706233,0.00011159,2]
[346806613,1735300265194,-1919.0,0.00011159,2]
[346806614,1735300265203,-500.0,0.00011159,2]
[346806615,1735300265213,-500.0,0.00011159,2]
[346806616,1735300265222,-404.03466506,0.00011159,2]
[346806617,1735300265231,-500.0,0.00011159,2]
[346806618,1735300265241,-1279.79,0.00011159,2]
[346806619,1735300265251,-500.0,0.00011159,2]
[346806620,1735300265260,-752.39,0.00011159,2]
[346806621,1735300265269,-500.0,0.00011159,2]
[346806622,1735300265279,-505.84221613,0.00011159,2]
[346806623,1735300265288,-500.0,0.00011159,2]
[346806624,1735300265297,-500.0,0.00011159,2]
[346806625,1735300265306,-500.0,0.00011159,2]
[346806626,1735300265315,-1120.04,0.00011159,2]
[346806627,1735300265324,-500.0,0.00011159,2]
[346806628,1735300265333,-500.0,0.00011159,2]
[346806629,1735300265343,-1008.96,0.00011159,2]
[346806630,1735300265352,-500.0,0.00011159,2]
[346806631,1735300265361,-500.0,0.00011159,2]
[346806632,1735300265371,-500.0,0.00011159,2]
[346806633,1735300265380,-500.0,0.00011159,2]
[346806634,1735300265390,-1003.06,0.00011159,2]
[346806635,1735300265399,-500.0,0.00011159,2]
[346806636,1735300265408,-509.3594999,0.00011159,2]
[346806637,1735300265418,-500.0,0.00011159,2]
[346806638,1735300265427,-503.77718765,0.00011159,2]
[346806639,1735300265437,-500.0,0.00011159,2]
[346806640,1735300265446,-500.0,0.00011159,2]
[346806641,1735300265455,-500.0,0.00011159,2]
[346806642,1735300265465,-500.0,0.00011159,2]
[346806643,1735300265474,-1644.21,0.00011159,2]
[346806644,1735300265484,-245.04,0.00011159,2]
[346806645,1735300265493,-500.0,0.00011159,2]
[346806646,1735300265503,-1067.58,0.00011159,2]
[346806647,1735300265512,-500.0,0.00011159,2]
[346806648,1735300265523,-500.0,0.00011159,2]
[346806649,1735300265532,-508.72153367,0.00011159,2]
[346806650,1735300265543,-500.0,0.00011159,2]
[346806651,1735300265560,-1295.67,0.00011159,2]
[346806652,1735300265569,-1254.49,0.00011159,2]
[346806653,1735300265579,-500.0,0.00011159,2]
[346806654,1735300265589,-500.0,0.00011159,2]
[346806655,1735300265599,-2033.8,0.00011159,2]
[346806656,1735300265608,-500.0,0.00011159,2]
[346806657,1735300265618,-500.0,0.00011159,2]
[346806658,1735300265627,-2087.59,0.00011159,2]
[346806659,1735300265637,-500.0,0.00011159,2]
[346806660,1735300265647,-827.66,0.00011159,2]
[346806661,1735300265657,-500.0,0.00011159,2]
[346806662,1735300265666,-500.0,0.00011159,2]
[346806663,1735300265675,-622.31,0.00011159,2]
[346806664,1735300265685,-150.0,0.00011159,2]
[346806665,1735300265694,-500.0,0.00011159,2]
[346806666,1735300265704,-1098.53,0.00011159,2]
[346806667,1735300265713,-500.0,0.00011159,2]
[346806668,1735300265723,-899.74,0.00011159,2]
[346806669,1735300265732,-501.05203187,0.00011159,2]
[346806670,1735300265742,-500.0,0.00011159,2]
[346806671,1735300265751,-500.0,0.00011159,2]
[346806672,1735300265761,-500.0,0.00011159,2]
[346806673,1735300265770,-500.0,0.00011159,2]
[346806674,1735300265780,-500.0,0.00011159,2]
[346806675,1735300265789,-772.96,0.00011159,2]
[346806676,1735300265799,-500.0,0.00011159,2]
[346806677,1735300265808,-500.0,0.00011159,2]
[346806678,1735300265817,-500.0,0.00011159,2]
[346806679,1735300265827,-3670.42,0.00011159,2]
[346806680,1735300265836,-794.2,0.00011159,2]
[346806681,1735300265845,-686.13,0.00011159,2]
[346806682,1735300265855,-7661.06,0.00011159,2]
[346806683,1735300265864,-500.0,0.00011159,2]
[346806684,1735300265873,-1442.82,0.00011159,2]
[346806685,1735300265883,-500.0,0.00011159,2]
[346806686,1735300265895,-505.91,0.00011159,2]
[346806687,1735300265905,-1553.93,0.00011159,2]
[346806688,1735300265914,-4420.8,0.00011159,2]
[346806689,1735300265924,-1204.72,0.00011159,2]
[346806690,1735300265933,-500.0,0.00011159,2]
[346806691,1735300265942,-2794.3,0.00011159,2]
[346806692,1735300265951,-2711.78,0.00011159,2]
[346806693,1735300265961,-1503.31,0.00011159,2]
[346806694,1735300265970,-4133.77,0.00011159,2]
[346806695,1735300265979,-849.17,0.00011159,2]
[346806696,1735300265988,-551.44,0.00011159,2]
[346806697,1735300265998,-4553.5,0.00011159,2]
[346806698,1735300266007,-500.0,0.00011159,2]
[346806699,1735300266016,-844.19,0.00011159,2]
[346806700,1735300266026,-2214.17,0.00011159,2]
[346806701,1735300266035,-546.31,0.00011159,2]
[346806702,1735300266045,-1067.99,0.00011159,2]
[346806703,1735300266055,-3213.59,0.00011159,2]
[346806704,1735300266064,-2430.77,0.00011159,2]
[346806705,1735300266074,-740.57,0.00011159,2]
[346806706,1735300266083,-1511.48,0.00011159,2]
[346806707,1735300266092,-7180.17,0.00011159,2]
[346806708,1735300266102,-543.56,0.00011159,2]
[346806709,1735300266111,-1911.92,0.00011159,2]
[346806710,1735300266120,-1627.69,0.00011159,2]
[346806711,1735300266130,-500.0,0.00011159,2]
[346806712,1735300266140,-500.0,0.00011159,2]
[346806713,1735300266149,-1507.03,0.00011159,2]
[346806714,1735300266158,-500.0,0.00011159,2]
[346806715,1735300266168,-980.8,0.00011159,2]
[346806716,1735300266178,-500.0,0.00011159,2]
[346806717,1735300266187,-500.0,0.00011159,2]
[346806718,1735300266196,-4771.83,0.00011159,2]
[346806719,1735300266205,-500.0,0.00011159,2]
[346806720,1735300266215,-1384.55,0.00011159,2]
[346806721,1735300266224,-563.48759233,0.00011159,2]
[346806722,1735300266233,-1304.85,0.00011159,2]
[346806723,1735300266243,-500.0,0.00011159,2]
[346806724,1735300266252,-500.0,0.00011159,2]
[346806725,1735300266261,-500.0,0.00011159,2]
[346806726,1735300266271,-3219.57,0.00011159,2]
[346806727,1735300266281,-1532.95,0.00011159,2]
[346806728,1735300266291,-500.0,0.00011159,2]
[346806729,1735300266300,-279.85828461,0.00011159,2]
[346806730,1735300266309,-3133.43,0.00011159,2]
[346806731,1735300266319,-500.0,0.00011159,2]
[346806732,1735300266328,-1262.99,0.00011159,2]
[346806733,1735300266337,-500.0,0.00011159,2]
[346806734,1735300266347,-500.0,0.00011159,2]
[346806735,1735300266356,-1910.08,0.00011159,2]
[346806736,1735300266366,-500.0,0.00011159,2]
[346806737,1735300266375,-500.0,0.00011159,2]
[346806738,1735300266385,-500.0,0.00011159,2]
[346806739,1735300266394,-500.0,0.00011159,2]
[346806740,1735300266403,-1244.87,0.00011159,2]
[346806741,1735300266413,-180.10434101,0.00011159,2]
[346806742,1735300266422,-2818.78,0.00011159,2]
[346806743,1735300266433,-541.27262337,0.00011159,2]
[346806744,1735300266442,-500.0,0.00011159,2]
[346806745,1735300266451,-1007.9,0.00011159,2]
[346806746,1735300266460,-1685.63,0.00011159,2]
[346806747,1735300266470,-500.0,0.00011159,2]
[346806748,1735300266480,-500.0,0.00011159,2]
[346806749,1735300266490,-20433.41,0.00011159,2]
[346806750,1735300266500,-500.0,0.00011159,2]
[346806751,1735300266509,-1305.72,0.00011159,2]
[346806752,1735300266519,-2495.15,0.00011159,2]
[346806753,1735300266529,-3428.73,0.00011159,2]
[346806754,1735300266538,-500.0,0.00011159,2]
[346806755,1735300266548,-500.0,0.00011159,2]
[346806756,1735300266561,-500.0,0.00011159,2]
[346806757,1735300266571,-500.0,0.00011159,2]
[346806758,1735300266580,-576.34,0.00011159,2]
[346806759,1735300266589,-500.0,0.00011159,2]
[346806760,1735300266599,-15241.94,0.00011159,2]
[346806761,1735300266609,-1470.91,0.00011159,2]
[346806762,1735300266618,-500.0,0.00011159,2]
[346806763,1735300266628,-500.0,0.00011159,2]
[346806764,1735300266638,-500.0,0.00011159,2]
[346806765,1735300266647,-500.0,0.00011159,2]
[346806766,1735300266656,-11918.49,0.00011159,2]
[346806767,1735300266666,-500.0,0.00011159,2]
[346806768,1735300266675,-2838.53,0.00011159,2]
[346806769,1735300266684,-500.0,0.00011159,2]
[346806770,1735300266694,-2611.19,0.00011159,2]
[346806771,1735300266703,-5109.67,0.00011159,2]
[346806772,1735300266713,-501.21670328,0.00011159,2]
[346806773,1735300266723,-500.0,0.00011159,2]
[346806774,1735300266731,-501.29634821,0.00011159,2]
[346806775,1735300266741,-430.8086285,0.00011159,2]
[346806776,1735300266750,-500.0,0.00011159,2]
[346806777,1735300266759,-2061.06,0.00011159,2]
[346806778,1735300266768,-9690.39,0.00011159,2]
[346806779,1735300266778,-500.0,0.00011159,2]
[346806780,1735300266787,-500.0,0.00011159,2]
[346806781,1735300266796,-1279.52,0.00011159,2]
[346806782,1735300266805,-2101.05,0.00011159,2]
[346806783,1735300266815,-3565.4,0.00011159,2]
[346806784,1735300266824,-507.23733774,0.00011159,2]
[346806785,1735300266834,-2146.19,0.00011159,2]
[346806786,1735300266844,-500.0,0.00011159,2]
[346806787,1735300266853,-5206.54,0.00011159,2]
[346806788,1735300266863,-500.0,0.00011159,2]
[346806789,1735300266872,-1119.39249813,0.00011159,2]
[346806790,1735300267623,-1518.82750187,0.00011159,2]
[346806791,1735300267633,-5408.05,0.00011159,2]
[346806792,1735300267643,-1628.97,0.00011159,2]
[346806793,1735300267652,-2140.42,0.00011159,2]
[346806794,1735300267662,-500.0,0.00011159,2]
[346806795,1735300267671,-500.0,0.00011159,2]
[346806796,1735300267681,-2243.88,0.00011159,2]
[346806797,1735300267690,-502.03733024,0.00011159,2]
[346806798,1735300267700,-247.76023004,0.00011159,2]
[346806799,1735300267711,-1553.15,0.00011159,2]
[346806800,1735300267721,-3697.17,0.00011159,2]
[346806801,1735300267731,-1752.66,0.00011159,2]
[346806802,1735300267740,-500.87407217,0.00011159,2]
[346806803,1735300267750,-501.72921872,0.00011159,2]
[346806804,1735300267763,-500.0,0.00011159,2]
[346806805,1735300267773,-500.0,0.00011159,2]
[346806806,1735300267783,-500.0,0.00011159,2]
[346806807,1735300267798,-603.64,0.00011159,2]
[346806808,1735300267809,-500.32923222,0.00011159,2]
[346806809,1735300267819,-500.0,0.00011159,2]
[346806810,1735300267828,-500.0,0.00011159,2]
[346806811,1735300267839,-500.0,0.00011159,2]
[346806812,1735300267849,-1763.52374476,0.00011159,2]
[346806813,1735300267967,-392.25625524,0.00011159,2]
[346806814,1735300267976,-500.72851781,0.00011159,2]
[346806815,1735300267986,-2163.92,0.00011159,2]
[346806816,1735300267995,-500.65221435,0.00011159,2]
[346806817,1735300268004,-83.67611828,0.00011159,2]
[346806818,1735300268058,-882.07388172,0.00011159,2]
[346806819,1735300268068,-500.81662651,0.00011159,2]
[346806820,1735300268078,-134.84338638,0.00011159,2]
[346806821,1735300589897,757.1,8.219e-05,2]
[346806876,1735300926591,2087.9402,0.0001551,24]
[346806970,1735301362122,-3978.934554,9.398e-05,2]
[346806977,1735301432471,-19921.065446,9.398e-05,2]
[346806978,1735301432481,-1852.42,9.499e-05,2]
[346806979,1735301432490,-199.02,9.526e-05,2]
[346806980,1735301432500,-1000.0,9.61e-05,2]
[346806981,1735301432509,-576.71,9.643e-05,2]
[346806982,1735301432519,-250.0,9.682e-05,2]
[346806983,1735301432528,-164.79,9.761e-05,2]
[346806984,1735301432537,-10004.43508845,9.771e-05,2]
[346806985,1735301432549,-7032.9607964,9.771e-05,2]
[346806986,1735301432559,-200.0,9.809e-05,2]
[346806987,1735301432568,-397.82,9.822e-05,2]
[346806988,1735301432578,-250.0,9.896e-05,2]
[346806989,1735301432588,-472.2,0.00010048,2]
[346806990,1735301432597,-400.0,0.000101,3]
[346806991,1735301432607,-150.0,0.00010137,2]
[346806992,1735301432617,-150.0,0.00010137,2]
[346806993,1735301432628,-150.0,0.00010137,2]
[346806994,1735301432638,-157.96,0.00010137,2]
[346806995,1735301432647,-800.0,0.000102,3]
[346806996,1735301432657,-771.1,0.00010247,2]
[346806997,1735301432671,-771.1,0.00010247,2]
[346806998,1735301432687,-601.26,0.00010247,2]
[346806999,1735301432702,-874.18,0.000103,2]
[346807000,1735301432715,-1200.0,0.000103,3]
[346807001,1735301432730,-150.0,0.00010384,2]
[346807002,1735301432745,-1987.59,0.00010384,2]
[346807003,1735301432761,-300.0,0.00010384,2]
[346807004,1735301432775,-1600.0,0.000104,3]
[346807005,1735301432787,-757.1,0.0001047,2]
[346807006,1735301432801,-2000.0,0.000105,3]
[346807007,1735301432815,-400.0,0.000106,3]
[346807008,1735301432830,-462.878,0.0001063,2]
[346807009,1735301432845,-400.0,0.000107,3]
[346807010,1735301432861,-2092.2631,0.00010783,2]
[346807011,1735301432876,-5714.1774,0.00010783,2]
[346807012,1735301432891,-9414.7663,0.00010783,2]
[346807013,1735301432905,-820.3329,0.00010783,2]
[346807014,1735301432918,-9262.09,0.00010784,2]
[346807015,1735301432933,-1000.0,0.00010784,2]
[346807016,1735301432947,-5000.0,0.00010784,2]
[346807017,1735301432960,-400.0,0.000108,3]
[346807018,1735301432972,-500.0,0.00010808,2]
[346807019,1735301432984,-1000.0,0.00010811,2]
[346807020,1735301433001,-576.71,0.00010848,2]
[346807021,1735301433013,-500.0,0.00010873,2]
[346807022,1735301433024,-500.0,0.00010873,2]
[346807023,1735301433037,-314.4155514,0.00010873,2]
[346807024,1735301433054,-3072.42,0.00010882,2]
[346807025,1735301433067,-2695.13,0.00010882,2]
[346807026,1735301433079,-477.85775959,0.00010882,2]
[346807027,1735301433113,-387.0,0.00010882,2]
[346807028,1735301433275,-1830.27224041,0.00010882,2]
[346807029,1735301433291,-1601.75310959,0.00010882,2]
[346807030,1735301433309,-613.61689041,0.00010882,2]
[346807031,1735301433323,-4304.64,0.00010882,2]
[346807032,1735301433339,-500.0,0.00010882,2]
[346807033,1735301433353,-500.0,0.00010882,2]
[346807034,1735301433367,-1199.53,0.00010882,2]
[346807035,1735301433381,-5112.62,0.00010882,2]
[346807036,1735301433396,-7221.17,0.00010882,2]
[346807037,1735301433410,-2233.74,0.00010882,2]
[346807038,1735301433424,-4270.36279104,0.00010882,2]
[346807076,1735301440598,-512.54499999,0.00010882,2]
[346807138,1735301446327,-2645.12777082,0.00010782,2]
[346807139,1735301446339,-540.61366231,0.00010782,2]
[346807140,1735301446351,-500.0,0.00010873,2]
[346807141,1735301446365,-2910.03220897,0.00010882,2]
[346807142,1735301446376,-4156.65,0.00010882,2]
[346807143,1735301446387,-3180.81,0.00010882,2]
[346807144,1735301446397,-6606.8,0.00010882,2]
[346807145,1735301446407,-2260.45880487,0.00010882,2]
[346807146,1735301446419,-1675.76119513,0.00010882,2]
[346807147,1735301446431,-2350.98,0.00010882,2]
[346807148,1735301446441,-1435.94,0.00010882,2]
[346807149,1735301446451,-939.31880486,0.00010882,2]
[346807150,1735301446473,-5889.59119514,0.00010882,2]
[346807151,1735301446482,-6841.51,0.00010882,2]
[346807152,1735301446492,-500.0,0.00010882,2]
[346807153,1735301446501,-11071.74,0.00010882,2]
[346807154,1735301446510,-1115.63,0.00010882,2]
[346807155,1735301446519,-4514.67,0.00010882,2]
[346807156,1735301446528,-6572.36,0.00010882,2]
[346807157,1735301446537,-3894.17,0.00010882,2]
[346807158,1735301446547,-1496.15,0.00010882,2]
[346807159,1735301446556,-2031.86,0.00010882,2]
[346807160,1735301446565,-19602.69,0.00010882,2]
[346807161,1735301446575,-2913.95,0.00010882,2]
[346807162,1735301446584,-5477.27,0.00010882,2]
[346807163,1735301446594,-4573.82,0.00010882,2]
[346807164,1735301446603,-10623.98,0.00010882,2]
[346807165,1735301446613,-3920.8,0.00010882,2]
[346807166,1735301446623,-3928.933344,0.00010882,2]
[346807167,1735301446632,-153.74247,0.00010882,2]
[346807168,1735301446642,-8723.22,0.00010882,2]
[346807169,1735301446651,-150.679695,0.00010882,2]
[346807170,1735301446661,-3865.005453,0.00010882,2]
[346807171,1735301446670,-1408.81,0.00010882,2]
[346807172,1735301446680,-21546.51,0.00010882,2]
[346807173,1735301446690,-3767.04,0.00010882,2]
[346807174,1735301446699,-500.0,0.00010882,2]
[346807175,1735301446708,-1073.03,0.00010882,2]
[346807176,1735301446718,-3431.6,0.00010882,2]
[346807177,1735301446728,-995.66,0.00010882,2]
[346807178,1735301446736,-1008.81,0.00010882,2]
[346807179,1735301446743,-2494.55,0.00010882,2]
[346807180,1735301446751,-2777.57,0.00010882,2]
[346807181,1735301446759,-2349.03,0.00010882,2]
[346807182,1735301446766,-2013.28,0.00010882,2]
[346807183,1735301446774,-500.0,0.00010882,2]
[346807184,1735301446781,-1945.74,0.00010882,2]
[346807185,1735301446789,-1170.78,0.00010882,2]
[346807186,1735301446796,-2766.27,0.00010882,2]
[346807187,1735301446803,-554.66,0.00010883,2]
[346807188,1735301446810,-606.21,0.00010883,2]
[346807189,1735301446818,-500.0,0.00010883,2]
[346807190,1735301446826,-500.0,0.00010883,2]
[346807191,1735301446834,-500.0,0.00010883,2]
[346807192,1735301446842,-500.0,0.00010883,2]
[346807193,1735301446851,-583.94,0.00010883,2]
[346807194,1735301446859,-757.64,0.00010883,2]
[346807195,1735301446866,-500.0,0.00010883,2]
[346807196,1735301446874,-816.15,0.00010883,2]
[346807197,1735301446880,-500.0,0.00010883,2]
[346807198,1735301446888,-1050.5,0.00010883,2]
[346807199,1735301446896,-1059.06,0.00010883,2]
[346807200,1735301446905,-500.0,0.00010883,2]
[346807201,1735301446914,-1655.45,0.00010883,2]
[346807202,1735301446923,-500.0,0.00010883,2]
[346807203,1735301446932,-500.0,0.00010883,2]
[346807204,1735301446940,-735.56,0.00010883,2]
[346807205,1735301446950,-500.0,0.00010883,2]
[346807206,1735301446959,-500.0,0.00010883,2]
[346807207,1735301446967,-500.0,0.00010883,2]
[346807208,1735301446976,-1233.45,0.00010883,2]
[346807209,1735301446985,-882.72,0.00010883,2]
[346807210,1735301446993,-847.38,0.00010883,2]
[346807211,1735301447002,-594.74,0.00010883,2]
[346807212,1735301447011,-500.0,0.00010883,2]
[346807213,1735301447020,-890.88,0.00010883,2]
[346807214,1735301447029,-929.77,0.00010883,2]
[346807215,1735301447038,-500.0,0.00010883,2]
[346807216,1735301447047,-2952.05,0.00010883,2]
[346807217,1735301447056,-500.0,0.00010883,2]
[346807218,1735301447064,-325.8375073,0.00010883,2]
[346807219,1735301447074,-500.0,0.00010883,2]
[346807220,1735301447083,-500.0,0.00010883,2]
[346807221,1735301447092,-500.0,0.00010883,2]
[346807222,1735301447105,-500.0,0.00010883,2]
[346807223,1735301447116,-549.19,0.00010883,2]
[346807224,1735301447125,-500.0,0.00010883,2]
[346807225,1735301447135,-1740.77,0.00010883,2]
[346807226,1735301447145,-500.0,0.00010883,2]
[346807227,1735301447155,-1947.31,0.00010883,2]
[346807228,1735301447165,-500.0,0.00010883,2]
[346807229,1735301447175,-500.0,0.00010883,2]
[346807230,1735301447186,-1846.76,0.00010883,2]
[346807231,1735301447196,-1314.29,0.00010883,2]
[346807232,1735301447206,-1284.14,0.00010883,2]
[346807233,1735301447215,-500.0,0.00010883,2]
[346807234,1735301447225,-1135.51,0.00010883,2]
[346807235,1735301447234,-500.0,0.00010883,2]
[346807236,1735301447244,-616.31,0.00010883,2]
[346807237,1735301447254,-727.2,0.00010883,2]
[346807238,1735301447263,-500.0,0.00010883,2]
[346807239,1735301447274,-1002.8,0.00010883,2]
[346807240,1735301447283,-795.17,0.00010883,2]
[346807241,1735301447293,-500.0,0.00010883,2]
[346807242,1735301447303,-500.0,0.00010883,2]
[346807243,1735301447312,-500.0,0.00010883,2]
[346807244,1735301447322,-500.0,0.00010883,2]
[346807245,1735301447331,-500.0,0.00010883,2]
[346807246,1735301447340,-500.0,0.00010883,2]
[346807247,1735301447351,-500.0,0.00010883,2]
[346807248,1735301447360,-500.0,0.00010883,2]
[346807249,1735301447370,-500.0,0.00010883,2]
[346807250,1735301447380,-755.71,0.00010883,2]
[346807251,1735301447390,-500.0,0.00010883,2]
[346807252,1735301447399,-500.0,0.00010883,2]
[346807253,1735301447408,-1886.3,0.00010883,2]
[346807254,1735301447418,-500.0,0.00010883,2]
[346807255,1735301447428,-500.0,0.00010883,2]
[346807256,1735301447438,-503.56965505,0.00010883,2]
[346807257,1735301447447,-500.0,0.00010883,2]
[346807258,1735301447457,-500.0,0.00010883,2]
[346807259,1735301447466,-1041.12,0.00010883,2]
[346807260,1735301447476,-500.0,0.00010883,2]
[346807261,1735301447485,-500.0,0.00010883,2]
[346807262,1735301447495,-592.68758666,0.00010883,2]
[346807263,1735301447504,-500.0,0.00010883,2]
[346807264,1735301447514,-498.69132494,0.00010883,2]
[346807265,1735301447523,-960.33,0.00010883,2]
[346807266,1735301447533,-500.0,0.00010883,2]
[346807267,1735301447543,-748.14,0.00010883,2]
[346807268,1735301447553,-500.0,0.00010883,2]
[346807269,1735301447562,-635.01,0.00010883,2]
[346807270,1735301447572,-500.0,0.00010883,2]
[346807271,1735301447581,-590.73,0.00010883,2]
[346807272,1735301447590,-500.0,0.00010883,2]
[346807273,1735301447600,-2293.66,0.00010883,2]
[346807274,1735301447609,-902.85,0.00010883,2]
[346807275,1735301447619,-500.0,0.00010883,2]
[346807276,1735301447628,-1042.66,0.00010883,2]
[346807277,1735301447638,-500.0,0.00010883,2]
[346807278,1735301447647,-500.0,0.00010883,2]
[346807279,1735301447656,-500.0,0.00010883,2]
[346807280,1735301447666,-1301.66,0.00010883,2]
[346807281,1735301447675,-1994.79,0.00010883,2]
[346807282,1735301447685,-500.0,0.00010883,2]
[346807283,1735301447694,-500.0,0.00010883,2]
[346807284,1735301447703,-500.0,0.00010883,2]
[346807285,1735301447713,-500.0,0.00010883,2]
[346807286,1735301447722,-607.43,0.00010883,2]
[346807287,1735301447731,-500.0,0.00010883,2]
[346807288,1735301447740,-800.36,0.00010883,2]
[346807289,1735301447751,-552.31,0.00010883,2]
[346807290,1735301447760,-500.0,0.00010883,2]
[346807291,1735301447770,-1048.65,0.00010883,2]
[346807292,1735301447779,-500.0,0.00010883,2]
[346807293,1735301447788,-500.0,0.00010883,2]
[346807294,1735301447797,-500.0,0.00010883,2]
[346807295,1735301447807,-649.94,0.00010883,2]
[346807296,1735301447816,-777.48,0.00010883,2]
[346807297,1735301447825,-500.0,0.00010883,2]
[346807298,1735301447835,-500.0,0.00010883,2]